bitfinex-derivatives/quotes_BNBF0:USTF0_20230901
["timestamp","ask_amount","ask_price","bid_price","bid_amount"]
[1693608413373,0.17063298,214.25,213.29,0.07690817]
[1693608413576,0.17063298,214.24,213.29,0.07690817]
[1693608413775,0.17063298,214.23,213.29,0.07690817]
[1693608413974,0.17063298,214.27,213.29,0.07690817]
[1693608414175,0.17063298,214.26,213.29,0.07690817]
[1693608414379,0.17063298,214.25,213.29,0.07690817]
[1693608414679,0.17063298,214.24,213.29,0.07690817]
[1693608414879,0.17063298,214.23,213.29,0.07690817]
[1693608415079,0.17063298,214.27,213.29,0.07690817]
[1693608415268,0.17063298,214.26,213.29,0.07690817]
[1693608415474,0.17063298,214.25,213.29,0.07690817]
[1693608415777,0.17063298,214.24,213.29,0.07690817]
[1693608415977,0.17063298,214.23,213.29,0.07690817]
[1693608416178,0.17063298,214.22,213.29,0.07690817]
[1693608416372,0.17063298,214.27,213.29,0.07690817]
[1693608416569,0.17063298,214.26,213.29,0.07690817]
[1693608416774,0.17063298,214.25,213.29,0.07690817]
[1693608416975,0.17063298,214.27,213.29,0.07690817]
[1693608417274,0.17063298,214.26,213.29,0.07690817]
[1693608417476,0.17063298,214.25,213.29,0.07690817]
[1693608417674,0.17063298,214.27,213.29,0.07690817]
[1693608417877,16.4070768,214.28,213.29,0.07690817]
[1693608417878,0.17063298,214.26,213.29,0.07690817]
[1693608418077,0.17063298,214.25,213.29,0.07690817]
[1693608418278,0.17063298,214.24,213.29,0.07690817]
[1693608418472,0.17063298,214.23,213.29,0.07690817]
[1693608418677,0.17063298,214.22,213.3,0.07690817]
[1693608418877,0.17063298,214.21,213.3,0.07690817]
[1693608419073,0.17063298,214.2,213.3,0.07690817]
[1693608419282,0.17063298,214.19,213.3,0.07690817]
[1693608419481,0.17063298,214.18,213.3,0.07690817]
[1693608419680,0.17063298,214.17,213.3,0.07690817]
[1693608419874,0.17063298,214.27,213.3,0.07690817]
[1693608420076,0.17063298,214.26,213.3,0.07690817]
[1693608420277,0.17063298,214.27,213.3,0.07690817]
[1693608420479,0.17063298,214.26,213.29,0.07690817]
[1693608420675,0.17063298,214.27,213.29,0.07690817]
[1693608420875,0.17063298,214.26,213.29,0.07690817]
[1693608421084,0.17063298,214.26,213.23,0.15381634]
[1693608421085,0.17063298,214.27,213.3,0.07690817]
[1693608421274,0.17063298,214.26,213.3,0.07690817]
[1693608421475,0.17063298,214.27,213.3,0.07690817]
[1693608421678,0.17063298,214.26,213.3,0.07690817]
[1693608421878,0.17063298,214.25,213.3,0.07690817]
[1693608422075,0.17063298,214.24,213.3,0.07690817]
[1693608422279,0.17063298,214.23,213.3,0.07690817]
[1693608422479,0.17063298,214.27,213.3,0.07690817]
[1693608422679,0.17063298,214.26,213.3,0.07690817]
[1693608422875,0.17063298,214.27,213.3,0.07690817]
[1693608423081,0.17063298,214.26,213.3,0.07690817]
[1693608423380,0.17063298,214.25,213.3,0.07690817]
[1693608423580,0.17063298,214.27,213.3,0.07690817]
[1693608423781,0.17063298,214.26,213.3,0.07690817]
[1693608423982,0.17063298,214.27,213.3,0.07690817]
[1693608424182,0.17063298,214.26,213.3,0.07690817]
[1693608424385,0.17063298,214.25,213.31,0.07690817]
[1693608424681,16.4070768,214.28,213.31,0.07690817]
[1693608424682,0.17063298,214.24,213.31,0.07690817]
[1693608424981,16.4070768,214.28,213.31,0.07690817]
[1693608424982,0.17063298,214.23,213.31,0.07690817]
[1693608425185,0.17063298,214.22,213.31,0.07690817]
[1693608425385,0.17063298,214.27,213.31,0.07690817]
[1693608425581,0.17063298,214.26,213.31,0.07690817]
[1693608425783,0.17063298,214.25,213.31,0.07690817]
[1693608426083,0.17063298,214.24,213.31,0.07690817]
[1693608426282,0.17063298,214.27,213.31,0.07690817]
[1693608426484,0.17063298,214.26,213.31,0.07690817]
[1693608426684,0.17063298,214.27,213.31,0.07690817]
[1693608426880,0.17063298,214.26,213.31,0.07690817]
[1693608427183,0.17063298,214.25,213.31,0.07690817]
[1693608427383,0.17063298,214.27,213.31,0.07690817]
[1693608427582,16.4070768,214.28,213.31,0.07690817]
[1693608427583,0.17063298,214.26,213.31,0.07690817]
[1693608427783,0.17063298,214.27,213.31,0.07690817]
[1693608427985,0.17063298,214.26,213.31,0.07690817]
[1693608428179,0.17063298,214.27,213.31,0.07690817]
[1693608428379,0.17063298,214.26,213.32,0.07690817]
[1693608428681,0.17063298,214.25,213.32,0.07690817]
[1693608428886,0.17063298,214.24,213.32,0.07690817]
[1693608429190,0.17063298,214.23,213.32,0.07690817]
[1693608429487,0.17063298,214.22,213.33,0.07690817]
[1693608429684,0.17063298,214.21,213.34,0.07690817]
[1693608429986,0.17063298,214.2,213.33,0.07690817]
[1693608430180,0.17063298,214.19,213.33,0.07690817]
[1693608430380,0.17063298,214.18,213.33,0.07690817]
[1693608430584,0.17063298,214.18,213.13,2.34346423]
[1693608430585,0.17063298,214.27,213.34,0.07690817]
[1693608430887,0.17063298,214.26,213.34,0.07690817]
[1693608431184,0.17063298,214.25,213.34,0.07690817]
[1693608431385,16.4070768,214.28,213.35,0.07690817]
[1693608431386,0.17063298,214.24,213.35,0.07690817]
[1693608431580,0.17063298,214.23,213.35,0.07690817]
[1693608431783,0.17063298,214.22,213.35,0.07690817]
[1693608432085,0.17063298,214.21,213.35,0.07690817]
[1693608432287,0.17063298,214.27,213.35,0.07690817]
[1693608432487,0.17063298,214.26,213.37,0.07690817]
[1693608432683,0.17063298,214.25,213.37,0.07690817]
[1693608432986,0.17063298,214.24,213.37,0.07690817]
[1693608433187,0.17063298,214.23,213.37,0.07690817]
[1693608433381,0.17063298,214.27,213.37,0.07690817]
[1693608433581,0.17063298,214.26,213.37,0.07690817]
[1693608433785,0.17063298,214.25,213.37,0.07690817]
[1693608433985,0.17063298,214.27,213.37,0.07690817]
[1693608434187,0.17063298,214.26,213.37,0.07690817]
[1693608434385,0.17063298,214.27,213.37,0.07690817]
[1693608434585,0.17063298,214.26,213.37,0.07690817]
[1693608434784,0.17063298,214.25,213.37,0.07690817]
[1693608434984,0.17063298,214.27,213.37,0.07690817]
[1693608435187,0.17063298,214.26,213.37,0.07690817]
[1693608435386,16.4070768,214.28,213.36,0.07690817]
[1693608435387,0.17063298,214.27,213.36,0.07690817]
[1693608435585,0.17063298,214.26,213.36,0.07690817]
[1693608435885,0.17063298,214.25,213.38,0.07690817]
[1693608436084,0.17063298,214.27,213.38,0.07690817]
[1693608437487,0.17063298,214.27,213.37,0.07690817]
[1693608438088,16.4070768,214.23,213.37,0.07690817]
[1693608438290,0.17063298,214.22,213.37,0.07690817]
[1693608441489,0.17063298,214.22,213.36,0.07690817]
[1693608442187,0.17063298,214.22,213.37,0.07690817]
[1693608442385,0.17063298,214.22,213.36,0.07690817]
[1693608445493,0.17063298,214.22,213.35,0.07690817]
[1693608446099,0.17063298,214.22,213.36,0.07690817]
[1693608446398,0.17063298,214.22,213.35,0.07690817]
[1693608451502,16.57770978,214.22,213.35,0.07690817]
[1693608451703,0.17063298,214.21,213.35,0.07690817]
[1693608464711,16.57770978,214.21,213.35,0.07690817]
[1693608465013,0.17063298,214.2,213.35,0.07690817]
[1693608466617,0.17063298,214.2,213.36,0.07690817]
[1693608467212,0.17063298,214.2,213.35,0.07690817]
[1693608467518,0.17063298,214.2,213.36,0.07690817]
[1693608472916,0.17063298,214.2,213.37,0.07690817]
[1693608473315,0.17063298,214.2,213.36,0.07690817]
[1693608480728,0.17063298,214.2,213.37,0.07690817]
[1693608486431,0.17063298,214.2,213.36,0.07690817]
[1693608486633,0.17063298,214.2,213.37,0.07690817]
[1693608487232,0.17063298,214.2,213.36,0.07690817]
[1693608491134,0.17063298,214.2,213.37,0.07690817]
[1693608491538,0.17063298,214.2,213.36,0.07690817]
[1693608497742,0.17063298,214.2,213.37,0.07690817]
[1693608498141,0.17063298,214.2,213.36,0.07690817]
[1693608498437,0.17063298,214.2,213.31,0.07690817]
[1693608498746,0.17063298,214.2,213.28,0.07690817]
[1693608499743,0.17063298,214.2,213.27,0.07690817]
[1693608500537,0.17063298,214.2,213.26,0.07690817]
[1693608502438,0.17063298,214.2,213.25,0.07690817]
[1693608504545,0.17063298,214.2,213.24,0.07690817]
[1693608507543,0.17063298,214.2,213.23,0.07690817]
[1693608517460,0.17063298,214.2,213.24,0.07690817]
[1693608517654,0.17063298,214.19,213.24,0.07690817]
[1693608517856,0.17063298,214.23,213.24,0.07690817]
[1693608518056,0.17063298,214.22,213.24,0.07690817]
[1693608518251,0.17063298,214.21,213.24,0.07690817]
[1693608518454,0.17063298,214.2,213.24,0.07690817]
[1693608518657,0.17063298,214.19,213.24,0.07690817]
[1693608518855,0.17063298,214.23,213.24,0.07690817]
[1693608519160,0.17063298,214.22,213.24,0.07690817]
[1693608519459,0.17063298,214.21,213.24,0.07690817]
[1693608519660,0.17063298,214.23,213.24,0.07690817]
[1693608519861,0.17063298,214.22,213.24,0.07690817]
[1693608520062,0.17063298,214.21,213.24,0.07690817]
[1693608520263,0.17063298,214.2,213.24,0.07690817]
[1693608520462,0.17063298,214.23,213.24,0.07690817]
[1693608520663,0.17063298,214.22,213.25,0.07690817]
[1693608520864,0.17063298,214.21,213.25,0.07690817]
[1693608521164,0.17063298,214.2,213.25,0.07690817]
[1693608521363,0.17063298,214.23,213.25,0.07690817]
[1693608521563,0.17063298,214.22,213.25,0.07690817]
[1693608521768,0.17063298,214.21,213.25,0.07690817]
[1693608522063,0.17063298,214.2,213.25,0.07690817]
[1693608522263,0.17063298,214.23,213.25,0.07690817]
[1693608522465,0.17063298,214.22,213.25,0.07690817]
[1693608522660,0.17063298,214.21,213.25,0.07690817]
[1693608522862,0.17063298,214.2,213.25,0.07690817]
[1693608523063,0.17063298,214.23,213.25,0.07690817]
[1693608523266,0.17063298,214.22,213.25,0.07690817]
[1693608523567,0.17063298,214.21,213.26,0.07690817]
[1693608523765,0.17063298,214.2,213.26,0.07690817]
[1693608523960,0.17063298,214.19,213.26,0.07690817]
[1693608524160,0.17063298,214.18,213.26,0.07690817]
[1693608524365,0.17063298,214.23,213.26,0.07690817]
[1693608524563,0.17063298,214.22,213.26,0.07690817]
[1693608524762,0.17063298,214.21,213.26,0.07690817]
[1693608524962,0.17063298,214.2,213.26,0.07690817]
[1693608525266,0.17063298,214.19,213.26,0.07690817]
[1693608525462,0.17063298,214.18,213.27,0.07690817]
[1693608525666,0.17063298,214.17,213.27,0.07690817]
[1693608525868,0.17063298,214.16,213.27,0.07690817]
[1693608526067,0.17063298,214.23,213.27,0.07690817]
[1693608526367,0.17063298,214.22,213.27,0.07690817]
[1693608526567,0.17063298,214.21,213.27,0.07690817]
[1693608526761,0.17063298,214.23,213.27,0.07690817]
[1693608526966,0.17063298,214.22,213.27,0.07690817]
[1693608527161,0.17063298,214.21,213.27,0.07690817]
[1693608527362,0.17063298,214.2,213.27,0.07690817]
[1693608527562,0.17063298,214.23,213.27,0.07690817]
[1693608527764,0.17063298,214.22,213.27,0.07690817]
[1693608527962,0.17063298,214.21,213.27,0.07690817]
[1693608528162,0.17063298,214.2,213.27,0.07690817]
[1693608528366,0.17063298,214.19,213.28,0.07690817]
[1693608528569,0.17063298,214.23,213.28,0.07690817]
[1693608528868,0.17063298,214.22,213.28,0.07690817]
[1693608529068,0.17063298,214.21,213.28,0.07690817]
[1693608529365,0.17063298,214.2,213.28,0.07690817]
[1693608529570,0.17063298,214.23,213.29,0.07690817]
[1693608529868,0.17063298,214.22,213.29,0.07690817]
[1693608530067,0.17063298,214.21,213.29,0.07690817]
[1693608530269,16.4070768,214.24,213.29,0.07690817]
[1693608530270,0.17063298,214.2,213.29,0.07690817]
[1693608530469,0.17063298,214.23,213.29,0.07690817]
[1693608530664,0.17063298,214.22,213.29,0.07690817]
[1693608530867,16.57770978,214.21,213.29,0.07690817]
[1693608531069,0.17063298,214.2,213.29,0.07690817]
[1693608531664,0.17063298,214.2,213.3,0.07690817]
[1693608532562,0.17063298,214.2,213.32,0.07690817]
[1693608539676,0.17063298,214.2,213.31,0.07690817]
[1693608540174,0.17063298,214.2,213.32,0.07690817]
[1693608541177,0.17063298,214.2,213.31,0.07690817]
[1693608544279,16.4070768,214.16,213.31,0.07690817]
[1693608544480,0.17063298,214.15,213.31,0.07690817]
[1693608545680,0.17063298,214.15,213.3,0.07690817]
[1693608548478,0.17063298,214.15,213.29,0.07690817]
[1693608549484,0.17063298,214.15,213.3,0.07690817]
[1693608557186,16.4070768,214.14,213.29,0.07690817]
[1693608557387,0.17063298,214.13,213.29,0.07690817]
[1693608582809,0.17063298,214.13,213.29,0.07322874]
[1693608597120,16.57770978,214.13,213.29,0.07322874]
[1693608597322,0.17063298,214.12,213.29,0.07322874]
[1693608611529,0.17063298,214.12,213.22,0.15381634]
[1693608636647,0.17063298,214.11,213.22,0.15381634]
[1693608636850,0.17063298,214.1,213.22,0.15381634]
[1693608637052,0.17063298,214.13,213.22,0.15381634]
[1693608637249,0.17063298,214.12,213.22,0.15381634]
[1693608637452,0.17063298,214.11,213.22,0.15381634]
[1693608637647,0.17063298,214.1,213.22,0.15381634]
[1693608637847,0.17063298,214.13,213.22,0.15381634]
[1693608638151,0.17063298,214.12,213.22,0.15381634]
[1693608638350,0.17063298,214.11,213.22,0.15381634]
[1693608638546,0.17063298,214.13,213.22,0.15381634]
[1693608638746,0.17063298,214.12,213.22,0.15381634]
[1693608638951,0.17063298,214.11,213.22,0.15381634]
[1693608639147,0.17063298,214.1,213.22,0.15381634]
[1693608639347,0.17063298,214.13,213.22,0.15381634]
[1693608639548,0.17063298,214.12,213.22,0.15381634]
[1693608639752,0.17063298,214.11,213.22,0.15381634]
[1693608640049,0.17063298,214.1,213.22,0.15381634]
[1693608640247,0.17063298,214.13,213.22,0.15381634]
[1693608640451,0.17063298,214.12,213.22,0.15381634]
[1693608640651,0.17063298,214.11,213.22,0.15381634]
[1693608640846,0.17063298,214.13,213.22,0.15381634]
[1693608641054,0.17063298,214.12,213.22,0.15381634]
[1693608641254,0.17063298,214.11,213.22,0.15381634]
[1693608641454,0.17063298,214.1,213.22,0.15381634]
[1693608641656,0.17063298,214.13,213.22,0.15381634]
[1693608641855,0.17063298,214.12,213.22,0.15381634]
[1693608642058,0.17063298,214.11,213.22,0.15381634]
[1693608642255,0.17063298,214.13,213.22,0.15381634]
[1693608649558,16.57770978,214.13,213.22,0.15381634]
[1693608649855,0.17063298,214.12,213.22,0.15381634]
[1693608651759,0.17063298,214.12,213.21,0.15381634]
[1693608652158,0.17063298,214.12,213.22,0.15381634]
[1693608652659,0.17063298,214.12,213.21,0.15381634]
[1693608653162,0.17063298,214.12,213.22,0.15381634]
[1693608665562,0.17063298,214.12,213.21,0.15381634]
[1693608677278,0.17063298,214.12,213.2,0.15381634]
[1693608679483,0.17063298,214.12,213.19,0.15381634]
[1693608681385,0.17063298,214.12,213.18,0.15381634]
[1693608681579,0.17063298,214.12,213.19,0.86164277]
[1693608682580,0.17063298,214.12,213.12,0.15381634]
[1693608683379,0.17063298,214.12,213.1,0.15381634]
[1693608683580,0.17063298,214.12,213.11,0.86194304]
[1693608684485,0.17063298,214.12,213.12,0.86194304]
[1693608684791,0.17063298,214.12,213.08,0.15381634]
[1693608685087,0.17063298,214.12,213.09,0.86193932]
[1693608685487,0.17063298,214.12,213.08,0.86193932]
[1693608685788,0.17063298,214.12,213.09,0.86193932]
[1693608685988,0.17063298,214.12,213.08,0.86193932]
[1693608686190,0.17063298,214.12,213.09,0.86193932]
[1693608686489,0.17063298,214.12,213.1,0.86193932]
[1693608686688,0.17063298,214.12,213.08,0.86193932]
[1693608689389,0.17063298,214.13,213.08,0.86193932]
[1693608689589,0.17063298,214.12,213.08,0.86193932]
[1693608689891,0.17063298,214.11,213.08,0.86193932]
[1693608690089,0.17063298,214.13,213.08,0.86193932]
[1693608690393,0.17063298,214.12,213.08,0.86193932]
[1693608690684,0.17063298,214.11,213.08,0.86193932]
[1693608690890,0.17063298,214.13,213.08,0.86193932]
[1693608691089,0.17063298,214.12,213.08,0.86193932]
[1693608691390,0.17063298,214.11,213.08,0.86193932]
[1693608691584,0.17063298,214.13,213.08,0.86193932]
[1693608691784,0.17063298,214.12,213.08,0.86193932]
[1693608691989,0.17063298,214.13,213.08,0.86193932]
[1693608692189,0.17063298,214.12,213.08,0.86193932]
[1693608692391,0.17063298,214.13,213.08,0.86193932]
[1693608692692,0.17063298,214.12,213.08,1.01575566]
[1693608692890,0.17063298,214.13,213.09,0.86193932]
[1693608696186,0.17063298,214.13,213.09,1.01575566]
[1693608696389,0.17063298,214.13,213.1,0.86193932]
[1693608696588,0.17063298,214.13,213.09,0.86193932]
[1693608696787,0.17063298,214.13,213.1,0.86193932]
[1693608696993,0.17063298,214.13,213.09,0.86193932]
[1693608697196,0.17063298,214.13,213.09,1.01575566]
[1693608697494,0.17063298,214.13,213.1,0.86193932]
[1693608698291,0.17063298,214.13,213.1,1.01575566]
[1693608698492,0.17063298,214.13,213.11,0.86193932]
[1693608701297,0.17063298,214.13,213.11,1.01575566]
[1693608701491,0.17063298,214.13,213.12,0.86193932]
[1693608702799,0.17063298,214.18,213.12,0.86193932]
[1693608702994,16.4070768,214.19,213.12,0.86193932]
[1693608702995,0.17063298,214.17,213.17,0.07656828]
[1693608703297,0.17063298,214.16,213.17,0.07656828]
[1693608703496,0.17063298,214.18,213.17,0.07656828]
[1693608703690,0.17063298,214.17,213.17,0.07656828]
[1693608703893,0.17063298,214.18,213.17,0.07656828]
[1693608704297,0.17063298,214.18,213.18,0.07656828]
[1693608709202,0.17063298,214.18,213.19,0.07656828]
[1693608711203,0.17063298,214.18,213.2,0.07656828]
[1693608712202,0.17063298,214.18,213.14,0.15381634]
[1693608712203,0.17063298,214.18,213.21,0.07656828]
[1693608714299,0.17063298,214.18,213.22,0.07656828]
[1693608715706,16.4070768,214.13,213.22,0.07656828]
[1693608716001,0.17063298,214.12,213.22,0.07656828]
[1693608716406,0.17063298,214.12,213.23,0.07656828]
[1693608717404,0.17063298,214.12,213.24,0.07656828]
[1693608723307,0.17063298,214.12,213.17,0.15381634]
[1693608723308,0.17063298,214.12,213.23,0.07656828]
[1693608726310,0.17063298,214.12,213.22,0.07656828]
[1693608728610,0.17063298,214.12,213.21,0.07656828]
[1693608729107,16.4070768,214.07,213.21,0.07656828]
[1693608729310,0.17063298,214.06,213.21,0.07656828]
[1693608730414,0.17063298,214.06,213.2,0.07656828]
[1693608731609,0.17063298,214.06,213.21,0.07656828]
[1693608731811,0.17063298,214.06,213.2,0.07656828]
[1693608732415,0.17063298,214.06,213.19,0.07656828]
[1693608742219,16.4070768,214.05,213.19,0.07656828]
[1693608742422,0.17063298,214.04,213.19,0.07656828]
[1693608761341,0.17063298,214.04,213.2,0.07656828]
[1693608793569,0.17063298,214.04,213.21,0.07656828]
[1693608793771,0.17063298,214.04,213.2,0.07656828]
[1693608808373,16.57770978,214.04,213.2,0.07656828]
[1693608808576,0.17063298,214.03,213.2,0.07656828]
[1693608813280,0.17063298,214.03,213.19,0.07656828]
[1693608813580,0.17063298,214.03,213.2,0.07656828]
[1693608833096,0.17063298,214.03,213.19,0.07656828]
[1693608841302,0.17063298,214.03,213.2,0.07656828]
[1693608841501,0.17063298,214.03,213.19,0.07656828]
[1693608842804,0.17063298,214.03,213.2,0.07656828]
[1693608843000,0.17063298,214.03,213.19,0.07656828]
[1693608845800,0.17063298,214.03,213.2,0.07656828]
[1693608846905,0.17063298,214.03,213.19,0.07656828]
[1693608859309,0.17063298,214.03,213.13,0.15385986]
[1693608859514,0.17063298,214.03,213.19,0.07692993]
[1693608860817,0.17063298,214.03,213.18,0.07692993]
[1693608861019,0.17063298,214.03,213.19,0.07692993]
[1693608861215,0.17063298,214.03,213.18,0.07692993]
[1693608861414,0.17063298,214.03,213.19,0.07692993]
[1693608867428,0.17063298,214.03,213.18,0.07692993]
[1693608891449,0.17063298,214.03,213.19,0.07692993]
[1693608898050,0.17063298,214.03,213.18,0.07692993]
[1693608898949,16.58235188,214.03,213.18,0.07692993]
[1693608899147,0.17063298,214.02,213.18,0.07692993]
[1693608899351,0.17063298,214.02,213.19,0.07692993]
[1693608899954,0.17063298,214.02,213.18,0.07692993]
[1693608904159,0.17063298,214.02,213.17,0.07692993]
[1693608905958,0.17063298,214.02,213.18,0.07692993]
[1693608906862,0.17063298,214.02,213.17,0.07692993]
[1693608909261,0.17063298,214.02,213.16,0.07692993]
[1693608911264,0.17063298,214.02,213.15,0.07692993]
[1693608912368,16.58235188,214.02,213.15,0.07692993]
[1693608912564,0.17063298,214.01,213.15,0.07692993]
[1693608914167,0.17063298,214.01,213.14,0.07692993]
[1693608914366,0.17063298,214.01,213.09,0.07692993]
[1693608914564,0.17063298,214.01,213.08,0.07692993]
[1693608915173,0.17063298,214.01,213.06,0.07692993]
[1693608916270,0.17063298,214.01,213.05,0.07692993]
[1693608917272,0.17063298,214.01,213.04,0.07692993]
[1693608918270,0.17063298,214.01,213.03,0.07692993]
[1693608920779,0.17063298,214.01,213.04,0.86224323]
[1693608920973,0.17063298,214.01,213.04,0.93917316]
[1693608921177,0.17063298,214.01,213.04,0.07692993]
[1693608924378,0.17063298,214.01,213.05,0.07692993]
[1693608925578,0.17063298,214.01,213.09,0.07692993]
[1693608925879,0.17063298,214.0,213.09,0.07692993]
[1693608926078,0.17063298,213.99,213.1,0.07692993]
[1693608926275,0.17063298,214.1,213.1,0.07692993]
[1693608926479,0.17063298,214.09,213.09,0.07692993]
[1693608926678,0.17063298,214.08,213.09,0.07692993]
[1693608926980,0.17063298,214.07,213.09,0.07692993]
[1693608927175,0.17063298,214.1,213.09,0.07692993]
[1693608927376,0.17063298,214.09,213.1,0.07692993]
[1693608927575,0.17063298,214.08,213.1,0.07692993]
[1693608927780,0.17063298,214.1,213.1,0.07692993]
[1693608927977,0.17063298,214.09,213.1,0.07692993]
[1693608928177,0.17063298,214.08,213.1,0.07692993]
[1693608928372,0.17063298,214.1,213.1,0.07692993]
[1693608928578,0.17063298,214.09,213.1,0.07692993]
[1693608928778,0.17063298,214.08,213.1,0.07692993]
[1693608929077,0.17063298,214.07,213.1,0.07692993]
[1693608929277,0.17063298,214.06,213.1,0.07692993]
[1693608929477,0.17063298,214.1,213.1,0.07692993]
[1693608929675,0.17063298,214.09,213.1,0.07692993]
[1693608929875,0.17063298,214.08,213.1,0.07692993]
[1693608930180,0.17063298,214.07,213.1,0.07692993]
[1693608930377,0.17063298,214.06,213.1,0.07692993]
[1693608930574,0.17063298,214.1,213.1,0.07692993]
[1693608930780,0.17063298,214.09,213.1,0.07692993]
[1693608930979,0.17063298,214.08,213.1,0.07692993]
[1693608931176,0.17063298,214.07,213.1,0.07692993]
[1693608931384,0.17063298,214.1,213.1,0.07692993]
[1693608931682,0.17063298,214.09,213.1,0.07692993]
[1693608931980,0.17063298,214.08,213.1,0.07692993]
[1693608932178,0.17063298,214.1,213.1,0.07692993]
[1693608932482,0.17063298,214.09,213.1,0.07692993]
[1693608932684,0.17063298,214.1,213.1,0.07692993]
[1693608932882,0.17063298,214.09,213.1,0.07692993]
[1693608933082,0.17063298,214.08,213.1,0.07692993]
[1693608933283,0.17063298,214.07,213.1,0.07692993]
[1693608933482,0.17063298,214.1,213.1,0.07692993]
[1693608933782,0.17063298,214.09,213.1,0.07692993]
[1693608933984,0.17063298,214.08,213.1,0.07692993]
[1693608934175,0.17063298,214.1,213.1,0.07692993]
[1693608934376,0.17063298,214.09,213.1,0.07692993]
[1693608934678,0.17063298,214.08,213.1,0.07692993]
[1693608934882,0.17063298,214.07,213.1,0.07692993]
[1693608935078,0.17063298,214.1,213.1,0.07692993]
[1693608935283,0.17063298,214.09,213.1,0.07692993]
[1693608935485,0.17063298,214.08,213.1,0.07692993]
[1693608935684,0.17063298,214.07,213.1,0.07692993]
[1693608935884,0.17063298,214.1,213.1,0.07692993]
[1693608936086,0.17063298,214.09,213.1,0.07692993]
[1693608936285,0.17063298,214.08,213.1,0.07692993]
[1693608936486,0.17063298,214.07,213.1,0.07692993]
[1693608936686,0.17063298,214.1,213.1,0.07692993]
[1693608936887,0.17063298,214.09,213.1,0.07692993]
[1693608937087,0.17063298,214.08,213.11,0.07692993]
[1693608937283,16.4117189,214.11,213.11,0.07692993]
[1693608937284,0.17063298,214.07,213.11,0.07692993]
[1693608937487,0.17063298,214.1,213.11,0.07692993]
[1693608937687,0.17063298,214.09,213.12,0.07692993]
[1693608937881,0.17063298,214.08,213.12,0.07692993]
[1693608938081,0.17063298,214.07,213.12,0.07692993]
[1693608938285,16.4117189,214.11,213.12,0.07692993]
[1693608938286,0.17063298,214.06,213.12,0.07692993]
[1693608938482,0.17063298,214.05,213.12,0.07692993]
[1693608938687,0.17063298,214.1,213.12,0.07692993]
[1693608938983,0.17063298,214.09,213.12,0.07692993]
[1693608946395,0.17063298,214.09,213.11,0.07692993]
[1693608952099,16.4117189,214.07,213.11,0.07692993]
[1693608952294,0.17063298,214.06,213.11,0.07692993]
[1693608954298,0.17063298,214.06,213.12,0.07692993]
[1693608954502,0.17063298,214.06,213.11,0.07692993]
[1693608955099,0.17063298,214.06,213.12,0.07692993]
[1693608956397,0.17063298,214.06,213.13,0.07692993]
[1693608959405,0.17063298,214.06,213.14,0.07692993]
[1693608960206,0.17063298,214.06,213.15,0.07692993]
[1693608964709,0.17063298,214.06,213.16,0.07692993]
[1693608964909,0.17063298,214.06,213.15,0.07692993]
[1693608965605,16.4117189,214.01,213.15,0.07692993]
[1693608965809,16.4117189,214.01,213.16,0.07692993]
[1693608965810,0.17063298,214.0,213.16,0.07692993]
[1693608967806,0.17063298,214.0,213.17,0.07692993]
[1693608968011,0.17063298,214.0,213.16,0.07692993]
[1693608968213,0.17063298,214.0,213.17,0.07692993]
[1693608968411,0.17063298,214.0,213.16,0.07692993]
[1693608970214,0.17063298,214.0,213.17,0.07692993]
[1693608971914,0.17063298,214.0,213.16,0.07692993]
[1693608973714,0.17063298,214.0,213.17,0.07692993]
[1693608974214,0.17063298,214.0,213.16,0.07692993]
[1693608974431,0.17063298,214.0,213.17,0.07692993]
[1693608977014,0.17063298,214.0,213.16,0.07692993]
[1693608977214,0.17063298,214.0,213.17,0.07692993]
[1693608978017,0.17063298,214.0,213.16,0.07692993]
[1693608978214,0.17063298,214.0,213.17,0.07692993]
[1693608978818,0.17063298,214.0,213.22,0.07692993]
[1693608979018,0.17063298,213.99,213.23,0.07692993]
[1693608979219,0.17063298,213.98,213.23,0.07692993]
[1693608979518,0.17063298,213.97,213.21,0.07692993]
[1693608979719,0.17063298,214.08,213.21,0.07692993]
[1693608979920,0.17063298,214.07,213.21,0.07692993]
[1693608980120,0.17063298,214.06,213.21,0.07692993]
[1693608980322,0.17063298,214.05,213.21,0.07692993]
[1693608980520,0.17063298,214.04,213.2,0.07692993]
[1693608980716,0.17063298,214.08,213.2,0.07692993]
[1693608980920,0.17063298,214.07,213.2,0.07692993]
[1693608981122,0.17063298,214.08,213.2,0.07692993]
[1693608981321,0.17063298,214.07,213.2,0.07692993]
[1693608981524,0.17063298,214.08,213.19,0.07692993]
[1693608981719,0.17063298,214.07,213.19,0.07692993]
[1693608981917,0.17063298,214.08,213.19,0.07692993]
[1693608982121,0.17063298,214.07,213.19,0.07692993]
[1693608982318,0.17063298,214.06,213.19,0.07692993]
[1693608982518,0.17063298,214.05,213.18,0.07692993]
[1693608982825,0.17063298,214.04,213.18,0.07692993]
[1693608983023,0.17063298,214.03,213.18,0.07692993]
[1693608983222,0.17063298,214.02,213.18,0.07692993]
[1693608983426,0.17063298,214.08,213.18,0.07692993]
[1693608983625,0.17063298,214.07,213.18,0.07692993]
[1693608983821,0.17063298,214.06,213.18,0.07692993]
[1693608984125,0.17063298,214.05,213.18,0.07692993]
[1693608984323,0.17063298,214.04,213.18,0.07692993]
[1693608984527,0.17063298,214.03,213.19,0.86159529]